fUSD/lending_fUSD_20260531
["ID","MTS","AMOUNT","RATE_DAILY","PERIOD"]
[423563886,1780230540000,1000.0,0.00030135,120]
[423563888,1780230558000,-150.0,0.00011981,2]
[423563889,1780230558000,-1296.56984265,0.00011984,2]
[423563887,1780230558000,-1207.28834248,0.00011884,2]
[423563900,1780230631000,-209.17060647,0.00011884,2]
[423563901,1780230631000,-60.82335599,0.00011984,2]
[423563905,1780230631000,-460.55358251,0.00012016,2]
[423563903,1780230631000,-376.30956596,0.00011988,2]
[423563902,1780230631000,-642.60680136,0.00011984,2]
[423563906,1780230631000,-280.63250004,0.00012016,2]
[423563904,1780230631000,-157.76043404,0.00011988,2]
[423563907,1780230631000,-349.09517559,0.00012016,2]
[423563910,1780230631000,-600.0,0.000125,4]
[423563908,1780230631000,-193.31874186,0.00012016,2]
[423563909,1780230631000,-156.46,0.00012357,2]
[423563914,1780230632000,-1200.0,0.00012799,2]
[423563915,1780230632000,-2500.0,0.000128,4]
[423563912,1780230632000,-1200.0,0.000126,4]
[423563913,1780230632000,-1800.0,0.000127,4]
[423563917,1780230632000,-1229.78214246,0.00012848,2]
[423563919,1780230632000,-91048.89928097,0.00012866,2]
[423563921,1780230632000,-137671.31042706,0.00012866,2]
[423563923,1780230632000,-1254.41808677,0.00012866,2]
[423563911,1780230632000,-165.19,0.00012582,2]
[423563947,1780230638000,-500.0,0.00012996,5]
[423563946,1780230638000,-500.0,0.00012996,4]
[423563944,1780230638000,-500.0,0.00012996,2]
[423563950,1780230638000,-500.0,0.00012996,8]
[423563940,1780230638000,-33556.22429526,0.00012967,2]
[423563943,1780230638000,-258.70909232,0.00012996,2]
[423563942,1780230638000,-250.0,0.00012984,2]
[423563939,1780230638000,-150.0,0.00012966,2]
[423563938,1780230638000,-288.7,0.00012924,2]
[423563935,1780230638000,-2500.0,0.00012897,2]
[423563937,1780230638000,-3100.0,0.000129,4]
[423563936,1780230638000,-237.12549559,0.00012897,2]
[423563934,1780230638000,-1549140.6940052,0.00012866,2]
[423563932,1780230638000,-601.8343991,0.00012797,2]
[423563933,1780230638000,-332.10222286,0.00012856,2]
[423563949,1780230638000,-500.0,0.00012996,7]
[423563941,1780230638000,-697.32322741,0.00012967,2]
[423563948,1780230638000,-500.0,0.00012996,6]
[423563945,1780230638000,-500.0,0.00012996,3]
[423563952,1780230638000,-500.0,0.00012996,10]
[423563973,1780230638000,-300.0,0.00013096,2]
[423563975,1780230638000,-666.0,0.00013096,2]
[423563972,1780230638000,-300.0,0.00013096,2]
[423563980,1780230638000,-1435906.96460786,0.00013097,2]
[423563969,1780230638000,-300.0,0.00013096,2]
[423563967,1780230638000,-666.0,0.00013096,2]
[423563966,1780230638000,-300.0,0.00013096,2]
[423563960,1780230638000,-371.47043533,0.00013081,2]
[423563963,1780230638000,-300.0,0.00013096,2]
[423563958,1780230638000,-3907.81197369,0.00013081,2]
[423563959,1780230638000,-981.0326436,0.00013081,2]
[423563957,1780230638000,-500.0,0.00013072,2]
[423563951,1780230638000,-500.0,0.00012996,9]
[423563956,1780230638000,-9479.56041106,0.00013067,2]
[423563955,1780230638000,-600.0,0.00012997,2]
[423563953,1780230638000,-500.0,0.00012996,11]
[423563954,1780230638000,-150.0,0.00012997,2]
[423563962,1780230638000,-300.0,0.00013096,2]
[423563977,1780230638000,-2000.0,0.00013097,2]
[423564042,1780230640000,-450.0,0.00012797,2]
[423564128,1780230645000,-2694.43323204,0.00012797,2]
[423564129,1780230646000,-568.53,0.00012797,2]
[423564140,1780231104000,271.87,0.00030082,120]
[423564402,1780231741000,1000.0,0.00030134,120]
[423564405,1780231749000,98309.05,0.00030137,120]
[423564403,1780231749000,-173.49,0.00011277,2]
[423564404,1780231749000,-42.14937667,0.0001153,2]
[423564426,1780231832000,-173.49,0.00012167,2]
[423564423,1780231832000,-1200.0,0.00011919,2]
[423564422,1780231832000,-476.29,0.00011897,2]
[423564420,1780231832000,-173.49,0.00011871,2]
[423564421,1780231832000,-425.44,0.00011886,2]
[423564419,1780231832000,-3077.67,0.00011871,2]
[423564417,1780231832000,-165.19,0.00011745,2]
[423564424,1780231832000,-2000.0,0.0001192,2]
[423564413,1780231832000,-855.51,0.0001166,2]
[423564411,1780231832000,-90.72013804,0.00011606,2]
[423564410,1780231832000,-385.56986196,0.00011606,2]
[423564408,1780231832000,-274.62062333,0.0001153,2]
[423564409,1780231832000,-173.49,0.00011574,2]
[423564406,1780231832000,-150.0,0.0001148,2]
[423564407,1780231832000,-200.0,0.00011521,2]
[423564425,1780231832000,-288.7,0.00012151,2]
[423564415,1780231832000,-432.33,0.00011693,2]
[423564427,1780231832000,-476.29,0.00012187,2]
[423564428,1780231832000,-271.87,0.00012329,2]
[423564444,1780231832000,-968631.48933029,0.00012667,2]
[423564445,1780231832000,-66558.24098999,0.00012667,2]
[423564442,1780231832000,-544.633,0.00012666,2]
[423564443,1780231832000,-150.0,0.00012666,2]
[423564441,1780231832000,-332.10222286,0.00012657,2]
[423564437,1780231832000,-44383.47645817,0.000126,2]
[423564440,1780231832000,-250.0,0.00012654,2]
[423564439,1780231832000,-1229.78214246,0.00012646,2]
[423564436,1780231832000,-601.8343991,0.000126,2]
[423564435,1780231832000,-697.32322741,0.000126,2]
[423564433,1780231832000,-476.29,0.00012477,2]
[423564434,1780231832000,-300.0,0.000126,4]
[423564431,1780231832000,-166.74,0.00012458,2]
[423564432,1780231832000,-173.49,0.00012464,2]
[423564438,1780231832000,-334.2080753,0.00012628,2]
[423564430,1780231832000,-500.0,0.00012405,2]
[423564450,1780231838000,-464810.26967972,0.00012667,2]
[423564451,1780231838000,-700.0,0.000127,4]
[423564463,1780231838000,-476.29,0.00012767,2]
[423564452,1780231838000,-44383.47645817,0.00012743,2]
[423564465,1780231838000,-1100.0,0.000128,4]
[423564455,1780231838000,-981.0326436,0.00012766,2]
[423564454,1780231838000,-20905.31721587,0.00012766,2]
[423564456,1780231838000,-371.47043533,0.00012766,2]
[423564453,1780231838000,-3907.81197369,0.00012766,2]
[423564460,1780231838000,-237.12549559,0.00012767,2]
[423564467,1780231838000,-332.10222286,0.00012856,2]
[423564469,1780231838000,-300.0,0.00012865,2]
[423564471,1780231838000,-300.0,0.00012865,2]
[423564475,1780231838000,-2500000.0,0.00012866,2]
[423564473,1780231838000,-666.0,0.00012865,2]
[423564477,1780231838000,-150.0,0.00012866,2]
[423564479,1780231838000,-11682.50448445,0.00012887,2]
[423564459,1780231838000,-1838.1522,0.00012766,2]
[423564590,1780231840000,-1364.16537526,0.00012887,2]
[423564591,1780231840000,-1606.96247255,0.00012887,2]
[423564606,1780231843000,-515.53292617,0.00012887,2]
[423564607,1780231843000,-7510.30193521,0.00012887,2]
[423564610,1780231843000,-625.12525929,0.00012887,2]
[423564609,1780231843000,-4593.71028193,0.00012887,2]
[423564608,1780231843000,-662.76,0.00012887,2]
[423564620,1780231846000,-1452.45958621,0.00012887,2]
[423564622,1780231846000,-1502.0,0.00012887,2]
[423564624,1780231846000,-592.40075735,0.00012887,2]
[423564623,1780231846000,-565.91203727,0.00012887,2]
[423564625,1780231846000,-2488.96101604,0.00012887,2]
[423564621,1780231846000,-9220.68032644,0.00012887,2]
[423564626,1780231846000,-2000.0,0.00012897,2]
[423564628,1780231846000,-150.0,0.00012907,2]
[423564630,1780231846000,-300.0,0.00012968,2]
[423564632,1780231846000,-3755.54344345,0.00012969,2]
[423564631,1780231846000,-666.0,0.00012968,2]
[423564627,1780231846000,-1400.0,0.000129,4]
[423564629,1780231846000,-254.0,0.00012907,2]
[423564636,1780231921000,5000.0,0.00030137,120]
[423564637,1780231932000,150.0,0.00028,120]
[423564638,1780231985000,150.0,0.00028,120]
[423564639,1780232001000,150.0,0.00028,120]
[423564640,1780232018000,150.0,0.00030136,120]
[423564641,1780232022000,150.0,0.00030136,120]
[423564642,1780232023000,150.0,0.00030136,120]
[423564643,1780232028000,150.0,0.00030136,120]
[423564644,1780232029000,150.0,0.00030136,120]
[423564645,1780232030000,150.0,0.00030136,120]
[423564646,1780232032000,150.0,0.00030136,120]
[423564647,1780232032000,150.0,0.00030136,120]
[423564648,1780232033000,150.0,0.00030136,120]
[423564649,1780232034000,150.0,0.00030136,120]
[423564650,1780232038000,150.0,0.00030136,120]
[423564651,1780232039000,150.0,0.00030136,120]
[423564652,1780232042000,150.0,0.00030136,120]
[423564653,1780232043000,150.0,0.00030136,120]
[423564664,1780232824000,271.84,0.00030082,120]
[423564665,1780232859000,1101.22353845,0.00029,120]
[423564666,1780232941000,1000.0,0.00030136,120]
[423564667,1780232945000,-3201.01503767,0.00010961,2]
[423564672,1780233032000,-1193.3609254,0.00010952,2]
[423564701,1780233033000,-156.95,0.00011768,2]
[423564702,1780233033000,-193.97,0.0001181,2]
[423564704,1780233033000,-352.69,0.00011873,2]
[423564705,1780233033000,-500.0,0.00011925,2]
[423564703,1780233033000,-193.97,0.00011871,2]
[423564706,1780233033000,-300.20693406,0.00011925,2]
[423564707,1780233033000,-500.0,0.00011925,2]
[423564709,1780233033000,-500.0,0.00011925,2]
[423564708,1780233033000,-500.0,0.00011925,2]
[423564713,1780233033000,-522.50524389,0.00011925,2]
[423564710,1780233033000,-500.0,0.00011925,2]
[423564718,1780233033000,-500.0,0.00011925,2]
[423564712,1780233033000,-500.0,0.00011925,2]
[423564714,1780233033000,-500.0,0.00011925,2]
[423564715,1780233033000,-500.0,0.00011925,2]
[423564716,1780233033000,-500.0,0.00011925,2]
[423564700,1780233033000,-150.0,0.00011768,2]
[423564717,1780233033000,-500.0,0.00011925,2]
[423564720,1780233033000,-500.0,0.00011925,2]
[423564719,1780233033000,-500.0,0.00011925,2]
[423564721,1780233033000,-500.0,0.00011925,2]
[423564722,1780233033000,-500.0,0.00011925,2]
[423564711,1780233033000,-500.0,0.00011925,2]
[423564698,1780233033000,-150.0,0.00011758,2]
[423564693,1780233033000,-193.97,0.00011565,2]
[423564697,1780233033000,-193.97,0.00011749,2]
[423564675,1780233033000,-2000.0,0.00011007,2]
[423564676,1780233033000,-193.97,0.00011016,2]
[423564674,1780233033000,-1992.7573906,0.00010952,2]
[423564677,1780233033000,-1200.0,0.0001102,2]
[423564678,1780233033000,-3829.25,0.00011021,2]
[423564679,1780233033000,-29239.49,0.00011045,2]
[423564680,1780233033000,-188.91,0.00011061,2]
[423564683,1780233033000,-580.57,0.00011077,2]
[423564681,1780233033000,-1112.70232125,0.00011076,2]
[423564682,1780233033000,-193.97,0.00011077,2]
[423564684,1780233033000,-335.47,0.00011107,2]
[423564685,1780233033000,-193.97,0.00011138,2]
[423564686,1780233033000,-193.97,0.00011199,2]
[423564689,1780233033000,-1229.78214246,0.00011339,2]
[423564687,1780233033000,-193.97,0.0001126,2]
[423564688,1780233033000,-193.97,0.00011321,2]
[423564695,1780233033000,-193.97,0.00011687,2]
[423564694,1780233033000,-193.97,0.00011626,2]
[423564723,1780233033000,-500.0,0.00011925,2]
[423564691,1780233033000,-193.97,0.00011443,2]
[423564696,1780233033000,-516.05,0.00011689,2]
[423564690,1780233033000,-193.97,0.00011382,2]
[423564692,1780233033000,-193.97,0.00011504,2]
[423564699,1780233033000,-158.76,0.00011758,2]
[423564725,1780233033000,-500.0,0.00011925,2]
[423564730,1780233033000,-500.0,0.00011925,2]
[423564727,1780233033000,-500.0,0.00011925,2]
[423564756,1780233033000,-193.97,0.00011932,2]
[423564759,1780233033000,-500.0,0.0001201,2]
[423564754,1780233033000,-500.0,0.00011925,2]
[423564757,1780233033000,-193.97,0.00011993,2]
[423564755,1780233033000,-500.0,0.00011925,2]
[423564761,1780233033000,-40526.3,0.00012055,2]
[423564760,1780233033000,-193.97,0.00012054,2]
[423564763,1780233033000,-1680.0,0.00012122,2]
[423564766,1780233033000,-271.84,0.00012329,2]
[423564769,1780233033000,-500.0,0.00012438,2]
[423564753,1780233033000,-507.18931602,0.00011925,2]
[423564767,1780233033000,-158.76,0.00012346,2]
[423564765,1780233033000,-500.0,0.00012284,2]
[423564770,1780233033000,-237.12549559,0.00012467,2]
[423564762,1780233033000,-193.97,0.00012115,2]
[423564768,1780233033000,-2000.0,0.00012383,2]
[423564772,1780233033000,-8760.40312759,0.00012467,2]
[423564771,1780233033000,-26021.97714856,0.00012467,2]
[423564773,1780233033000,-240.73375964,0.00012467,2]
[423564775,1780233033000,-44511.74818082,0.000125,2]
[423564776,1780233033000,-9966.73870738,0.000125,2]
[423564774,1780233033000,-701.99310274,0.00012467,2]
[423564764,1780233033000,-193.97,0.00012176,2]
[423564752,1780233033000,-500.0,0.00011925,2]
[423564758,1780233033000,-442.3205589,0.0001201,2]
[423564751,1780233033000,-500.0,0.00011925,2]
[423564726,1780233033000,-500.0,0.00011925,2]
[423564729,1780233033000,-500.0,0.00011925,2]
[423564733,1780233033000,-240.7128198,0.00011925,2]
[423564724,1780233033000,-500.0,0.00011925,2]
[423564728,1780233033000,-500.0,0.00011925,2]
[423564732,1780233033000,-500.0,0.00011925,2]
[423564749,1780233033000,-500.0,0.00011925,2]
[423564735,1780233033000,-500.0,0.00011925,2]
[423564734,1780233033000,-500.0,0.00011925,2]
[423564739,1780233033000,-500.0,0.00011925,2]
[423564737,1780233033000,-500.0,0.00011925,2]
[423564738,1780233033000,-500.0,0.00011925,2]
[423564731,1780233033000,-500.0,0.00011925,2]
[423564742,1780233033000,-500.0,0.00011925,2]
[423564744,1780233033000,-500.0,0.00011925,2]
[423564741,1780233033000,-500.0,0.00011925,2]
[423564740,1780233033000,-500.0,0.00011925,2]
[423564745,1780233033000,-500.0,0.00011925,2]
[423564743,1780233033000,-450.0,0.00011925,2]
[423564746,1780233033000,-500.0,0.00011925,2]
[423564747,1780233033000,-500.0,0.00011925,2]
[423564748,1780233033000,-500.0,0.00011925,2]
[423564750,1780233033000,-500.0,0.00011925,2]
[423564736,1780233033000,-500.0,0.00011925,2]
[423564787,1780233034000,-300.0,0.00012566,2]
[423564785,1780233034000,-152.81594304,0.00012566,2]
[423564784,1780233034000,-500.0,0.00012566,2]
[423564783,1780233034000,-184.13134432,0.00012566,2]
[423564782,1780233034000,-383.35488623,0.00012566,2]
[423564777,1780233034000,-250.0,0.00012555,2]
[423564781,1780233034000,-150.0,0.00012566,2]
[423564779,1780233034000,-151.0,0.00012564,2]
[423564778,1780233034000,-500.0,0.00012558,2]
[423564786,1780233034000,-204.06101476,0.00012566,2]
[423564780,1780233034000,-151.0,0.00012564,2]
[423564788,1780233034000,-150.0,0.00012566,2]
[423564792,1780233034000,-300.0,0.000126,4]
[423564794,1780233034000,-700.0,0.000127,4]
[423564798,1780233034000,-1100.0,0.000128,4]
[423564799,1780233034000,-412.94807384,0.00012822,2]
[423564801,1780233034000,-54988.09813971,0.00012832,2]
[423564797,1780233034000,-6757.81721041,0.00012767,2]
[423564796,1780233034000,-37753.93097034,0.00012767,2]
[423564800,1780233034000,-5249.5764909,0.00012832,2]
[423564793,1780233034000,-500.0,0.00012685,2]
[423564790,1780233034000,-150.0,0.00012567,2]
[423564789,1780233034000,-155.94696078,0.00012566,2]
[423564791,1780233034000,-2000.0,0.00012567,2]
[423564795,1780233034000,-34782.38027615,0.00012737,2]
[423564818,1780233038000,-1500.0,0.000129,4]
[423564826,1780233038000,-298.316198,0.00012969,2]
[423564825,1780233038000,-151.0,0.00012969,2]
[423564823,1780233038000,-162.49,0.00012969,2]
[423564820,1780233038000,-151.0,0.00012966,2]
[423564821,1780233038000,-151.0,0.00012968,2]
[423564819,1780233038000,-158.76,0.00012934,2]
[423564816,1780233038000,-500.0,0.00012832,2]
[423564817,1780233038000,-255.0,0.00012839,2]
[423564810,1780233038000,-245931.3351056,0.00012832,2]
[423564815,1780233038000,-156.0,0.00012832,2]
[423564812,1780233038000,-151532.7956408,0.00012832,2]
[423564809,1780233038000,-12929.4041114,0.00012832,2]
[423564811,1780233038000,-1020.3370621,0.00012832,2]
[423564822,1780233038000,-221957.6621712,0.00012969,2]
[423564808,1780233038000,-2901.96549779,0.00012079,2]
[423564807,1780233038000,-1856.31450221,0.00012079,2]
[423564806,1780233038000,-1654.78096089,0.00012832,2]
[423564813,1780233038000,-9393.303451,0.00012832,2]
[423564828,1780233038000,-156.0,0.00012969,2]
[423564814,1780233038000,-169.5325153,0.00012832,2]
[423564824,1780233038000,-151.0,0.00012969,2]
[423564827,1780233038000,-151.0,0.00012969,2]
[423564847,1780233038000,-34782.38027615,0.00013008,2]
[423564846,1780233038000,-500.0,0.00012996,11]
[423564845,1780233038000,-500.0,0.00012996,10]
[423564844,1780233038000,-500.0,0.00012996,9]
[423564841,1780233038000,-500.0,0.00012996,6]
[423564838,1780233038000,-500.0,0.00012996,3]
[423564843,1780233038000,-500.0,0.00012996,8]
[423564839,1780233038000,-500.0,0.00012996,4]
[423564840,1780233038000,-500.0,0.00012996,5]
[423564842,1780233038000,-500.0,0.00012996,7]
[423564836,1780233038000,-151.0,0.0001299,2]
[423564835,1780233038000,-163.0,0.0001298,2]
[423564834,1780233038000,-38586.1869443,0.00012977,2]
[423564833,1780233038000,-1546.0,0.00012969,2]
[423564830,1780233038000,-1546.0,0.00012969,2]
[423564831,1780233038000,-1546.0,0.00012969,2]
[423564832,1780233038000,-1546.0,0.00012969,2]
[423564837,1780233038000,-500.0,0.00012996,2]
[423564829,1780233038000,-1546.0,0.00012969,2]
[423564889,1780233039000,-150.0,0.00013675,2]
[423564888,1780233039000,-150.0,0.00013668,2]
[423564887,1780233039000,-150.0,0.00013664,2]
[423564886,1780233039000,-500.0,0.00013654,2]
[423564884,1780233039000,-327.52419736,0.00013652,2]
[423564881,1780233039000,-150.0,0.00013608,2]
[423564882,1780233039000,-500.0,0.00013616,2]
[423564883,1780233039000,-150.0,0.0001362,2]
[423564877,1780233039000,-34782.38027615,0.00013548,2]
[423564892,1780233039000,-776.12834704,0.00013697,2]
[423564879,1780233039000,-158.0,0.00013567,2]
[423564885,1780233039000,-150.0,0.00013654,2]
[423564890,1780233039000,-701.99310274,0.00013684,2]
[423564903,1780233039000,-500.0,0.00013698,2]
[423564893,1780233039000,-300.0,0.00013697,2]
[423564894,1780233039000,-500.0,0.00013698,2]
[423564895,1780233039000,-500.0,0.00013698,2]
[423564897,1780233039000,-500.0,0.00013698,2]
[423564898,1780233039000,-500.0,0.00013698,2]
[423564896,1780233039000,-500.0,0.00013698,2]
[423564899,1780233039000,-500.0,0.00013698,2]
[423564901,1780233039000,-500.0,0.00013698,2]
[423564900,1780233039000,-551.16841754,0.00013698,2]
[423564902,1780233039000,-500.0,0.00013698,2]
[423564904,1780233039000,-500.0,0.00013698,2]
[423564905,1780233039000,-500.0,0.00013698,2]
[423564878,1780233039000,-44511.74818075,0.00013567,2]
[423564891,1780233039000,-151.0,0.00013695,2]
[423564880,1780233039000,-150.0,0.00013576,2]
[423564850,1780233039000,-500.0,0.00013096,12]
[423564876,1780233039000,-150.0,0.00013548,2]
[423564906,1780233039000,-500.0,0.00013698,2]
[423564849,1780233039000,-44511.74818075,0.00013033,2]
[423564851,1780233039000,-500.0,0.00013096,13]
[423564848,1780233039000,-7773.967759,0.00013012,2]
[423564852,1780233039000,-500.0,0.00013096,14]
[423564853,1780233039000,-500.0,0.00013106,2]
[423564855,1780233039000,-432.33,0.00013155,2]
[423564856,1780233039000,-500.0,0.00013196,12]
[423564854,1780233039000,-516.05,0.00013151,2]
[423564857,1780233039000,-500.0,0.00013196,13]
[423564858,1780233039000,-500.0,0.00013196,14]
[423564861,1780233039000,-44511.74818075,0.000133,2]
[423564859,1780233039000,-500.0,0.00013196,15]
[423564860,1780233039000,-34782.38027615,0.00013278,2]
[423564863,1780233039000,-500.0,0.0001338,2]
[423564867,1780233039000,-150.0,0.00013488,2]
[423564864,1780233039000,-193.19602902,0.0001341,14]
[423564862,1780233039000,-1876.0,0.00013334,2]
[423564866,1780233039000,-151.29500077,0.00013488,2]
[423564868,1780233039000,-150.0,0.00013488,2]
[423564865,1780233039000,-1546.0,0.00013477,2]
[423564869,1780233039000,-150.0,0.00013488,2]
[423564870,1780233039000,-150.0,0.00013488,2]
[423564871,1780233039000,-150.0,0.00013488,2]
[423564872,1780233039000,-150.0,0.00013488,2]
[423564873,1780233039000,-150.0,0.00013532,2]
[423564874,1780233039000,-216.3481031,0.00013537,2]
[423564875,1780233039000,-864.52702,0.00013537,2]
[423564908,1780233039000,-500.0,0.00013698,2]
[423564907,1780233039000,-499.80000009,0.00013698,2]
[423564969,1780233039000,-2555.15,0.00013698,2]
[423564939,1780233039000,-500.0,0.00013698,2]
[423564944,1780233039000,-517.95527888,0.00013698,2]
[423564943,1780233039000,-500.0,0.00013698,2]
[423564942,1780233039000,-500.0,0.00013698,2]
[423564947,1780233039000,-500.0,0.00013698,2]
[423564946,1780233039000,-500.0,0.00013698,2]
[423564948,1780233039000,-500.0,0.00013698,2]
[423564949,1780233039000,-500.0,0.00013698,2]
[423564951,1780233039000,-500.0,0.00013698,2]
[423564954,1780233039000,-500.0,0.00013698,2]
[423564950,1780233039000,-500.0,0.00013698,2]
[423564953,1780233039000,-500.0,0.00013698,2]
[423564956,1780233039000,-500.0,0.00013698,2]
[423564952,1780233039000,-500.0,0.00013698,2]
[423564957,1780233039000,-500.0,0.00013698,2]
[423564958,1780233039000,-500.0,0.00013698,2]
[423564955,1780233039000,-484.96,0.00013698,2]
[423564959,1780233039000,-500.0,0.00013698,2]
[423564960,1780233039000,-500.0,0.00013698,2]
[423564961,1780233039000,-500.0,0.00013698,2]
[423564962,1780233039000,-500.0,0.00013698,2]
[423564964,1780233039000,-500.0,0.00013698,2]
[423564966,1780233039000,-500.0,0.00013698,2]
[423564965,1780233039000,-500.0,0.00013698,2]
[423564963,1780233039000,-500.0,0.00013698,2]
[423564968,1780233039000,-500.0,0.00013698,2]
[423564967,1780233039000,-500.0,0.00013698,2]
[423564945,1780233039000,-500.0,0.00013698,2]
[423564941,1780233039000,-500.0,0.00013698,2]
[423564909,1780233039000,-500.0,0.00013698,2]
[423564938,1780233039000,-500.0,0.00013698,2]
[423564910,1780233039000,-500.0,0.00013698,2]
[423564911,1780233039000,-500.0,0.00013698,2]
[423564912,1780233039000,-500.0,0.00013698,2]
[423564916,1780233039000,-500.0,0.00013698,2]
[423564919,1780233039000,-500.22762284,0.00013698,2]
[423564918,1780233039000,-508.35042822,0.00013698,2]
[423564915,1780233039000,-500.0,0.00013698,2]
[423564940,1780233039000,-500.0,0.00013698,2]
[423564914,1780233039000,-500.0,0.00013698,2]
[423564913,1780233039000,-500.0,0.00013698,2]
[423564921,1780233039000,-500.0,0.00013698,2]
[423564920,1780233039000,-500.0,0.00013698,2]
[423564922,1780233039000,-500.0,0.00013698,2]
[423564923,1780233039000,-500.0,0.00013698,2]
[423564917,1780233039000,-500.0,0.00013698,2]
[423564925,1780233039000,-500.0,0.00013698,2]
[423564924,1780233039000,-500.0,0.00013698,2]
[423564936,1780233039000,-500.0,0.00013698,2]
[423564937,1780233039000,-500.0,0.00013698,2]
[423564935,1780233039000,-470.6,0.00013698,2]
[423564933,1780233039000,-500.0,0.00013698,2]
[423564931,1780233039000,-500.0,0.00013698,2]
[423564934,1780233039000,-500.0,0.00013698,2]
[423564929,1780233039000,-500.0,0.00013698,2]
[423564927,1780233039000,-500.0,0.00013698,2]
[423564928,1780233039000,-500.0,0.00013698,2]
[423564932,1780233039000,-500.0,0.00013698,2]
[423564926,1780233039000,-500.0,0.00013698,2]
[423564930,1780233039000,-500.0,0.00013698,2]
[423565006,1780233040000,-500.0,0.00013698,2]
[423565012,1780233040000,-500.0,0.00013698,2]
[423565008,1780233040000,-500.0,0.00013698,2]
[423565010,1780233040000,-500.0,0.00013698,2]
[423565009,1780233040000,-500.0,0.00013698,2]
[423565001,1780233040000,-560.8,0.00013698,2]
[423565007,1780233040000,-500.0,0.00013698,2]
[423565004,1780233040000,-560.8,0.00013698,2]
[423565005,1780233040000,-500.0,0.00013698,2]
[423565003,1780233040000,-560.8,0.00013698,2]
[423565000,1780233040000,-560.8,0.00013698,2]
[423565011,1780233040000,-500.0,0.00013698,2]
[423565015,1780233040000,-174.18899724,0.00013698,2]
[423565027,1780233040000,-690.92,0.00013698,2]
[423565013,1780233040000,-500.0,0.00013698,2]
[423565016,1780233040000,-690.92,0.00013698,2]
[423565017,1780233040000,-690.92,0.00013698,2]
[423565020,1780233040000,-690.92,0.00013698,2]
[423565018,1780233040000,-690.92,0.00013698,2]
[423565019,1780233040000,-690.92,0.00013698,2]
[423565021,1780233040000,-690.92,0.00013698,2]
[423565028,1780233040000,-690.92,0.00013698,2]
[423565022,1780233040000,-690.92,0.00013698,2]
[423565023,1780233040000,-690.92,0.00013698,2]
[423565025,1780233040000,-690.92,0.00013698,2]
[423565024,1780233040000,-690.92,0.00013698,2]
[423564998,1780233040000,-560.8,0.00013698,2]
[423565014,1780233040000,-500.0,0.00013698,2]
[423565002,1780233040000,-560.8,0.00013698,2]
[423564984,1780233040000,-2555.15,0.00013698,2]
[423564997,1780233040000,-560.8,0.00013698,2]
[423565026,1780233040000,-690.92,0.00013698,2]
[423564972,1780233040000,-2555.15,0.00013698,2]
[423564974,1780233040000,-2555.15,0.00013698,2]
[423564973,1780233040000,-2555.15,0.00013698,2]
[423564978,1780233040000,-2555.15,0.00013698,2]
[423564971,1780233040000,-2555.15,0.00013698,2]
[423564970,1780233040000,-168.6,0.00013698,2]
[423564976,1780233040000,-2555.15,0.00013698,2]
[423564975,1780233040000,-2555.15,0.00013698,2]
[423564977,1780233040000,-2555.15,0.00013698,2]